fUSD/lending_fUSD_20251229
["ID","MTS","AMOUNT","RATE_DAILY","PERIOD"]
[399986192,1766979043761,-432.0,0.00027721,2]
[399986193,1766979043770,-912.0,0.00027721,2]
[399986194,1766979043779,-1199.0,0.00027721,2]
[399986195,1766979043788,-3461.0,0.00027721,2]
[399986196,1766979043798,-1611.0,0.00027721,2]
[399986197,1766979043807,-1327.0,0.00027721,2]
[399986198,1766979043816,-175.0414891,0.00028011,2]
[399986199,1766979043826,-2000.0,0.000281,2]
[399986200,1766979043835,-166.66,0.00028375,2]
[399986201,1766979043845,-183.28516782,0.00028452,2]
[399986202,1766979043854,-373.07297731,0.00028555,2]
[399986203,1766979043864,-567.0,0.00028557,2]
[399986204,1766979043874,-621.78829552,0.00028557,2]
[399986205,1766979043883,-4968.3,0.00028828,2]
[399986206,1766979043892,-151.55467165,0.00029163,2]
[399986207,1766979043901,-166.66,0.00029281,2]
[399986208,1766979043910,-150.6153918,0.00029781,2]
[399986209,1766979043919,-386.87667747,0.00029924,2]
[399986210,1766979043928,-174.85572163,0.00029968,2]
[399986211,1766979043937,-349.5,0.00030002,2]
[399986212,1766979043946,-1001.3842104,0.0003013,2]
[399986213,1766979043955,-1000.0,0.00030135,30]
[399986214,1766979043964,-387.11,0.00030136,2]
[399986215,1766979043973,-387.11,0.00030136,2]
[399986216,1766979043982,-387.11,0.00030136,2]
[399986217,1766979043992,-387.11,0.00030136,2]
[399986218,1766979044001,-387.11,0.00030136,2]
[399986219,1766979044011,-387.11,0.00030136,2]
[399986220,1766979044020,-1000.0,0.00030136,2]
[399986221,1766979044029,-1000.0,0.00030136,2]
[399986222,1766979044038,-1000.0,0.00030136,2]
[399986223,1766979044047,-1000.0,0.00030136,2]
[399986224,1766979044056,-1000.0,0.00030136,2]
[399986225,1766979044065,-1000.0,0.00030136,2]
[399986226,1766979044074,-1000.0,0.00030136,2]
[399986227,1766979044083,-500.0,0.00030136,2]
[399986228,1766979044093,-500.0,0.00030136,2]
[399986229,1766979044102,-500.0,0.00030136,2]
[399986230,1766979044110,-500.0,0.00030136,2]
[399986231,1766979044119,-500.0,0.00030136,2]
[399986232,1766979044128,-500.0,0.00030136,2]
[399986233,1766979044137,-1298.76,0.00030136,2]
[399986234,1766979044146,-1298.76,0.00030136,2]
[399986235,1766979044155,-1298.76,0.00030136,2]
[399986236,1766979044164,-1298.76,0.00030136,2]
[399986237,1766979044173,-1298.76,0.00030136,2]
[399986238,1766979044183,-1298.76,0.00030136,2]
[399986239,1766979044192,-500.0,0.00030136,2]
[399986240,1766979044202,-500.0,0.00030136,2]
[399986241,1766979044211,-500.0,0.00030136,2]
[399986242,1766979044220,-500.0,0.00030136,2]
[399986243,1766979044230,-500.0,0.00030136,2]
[399986244,1766979044240,-500.0,0.00030136,2]
[399986245,1766979044249,-500.0,0.00030136,2]
[399986246,1766979044258,-500.0,0.00030136,2]
[399986247,1766979044268,-500.0,0.00030136,2]
[399986248,1766979044277,-500.0,0.00030136,2]
[399986249,1766979044287,-500.0,0.00030136,2]
[399986250,1766979044297,-500.0,0.00030136,2]
[399986251,1766979044306,-500.0,0.00030136,2]
[399986252,1766979044315,-500.0,0.00030136,2]
[399986253,1766979044324,-500.0,0.00030136,2]
[399986254,1766979044334,-500.0,0.00030136,2]
[399986255,1766979044343,-500.0,0.00030136,2]
[399986256,1766979044352,-500.0,0.00030136,2]
[399986257,1766979044362,-337.78,0.00030136,2]
[399986258,1766979044372,-337.78,0.00030136,2]
[399986259,1766979044381,-337.78,0.00030136,2]
[399986260,1766979044391,-337.78,0.00030136,2]
[399986261,1766979044400,-337.78,0.00030136,2]
[399986262,1766979044410,-337.78,0.00030136,2]
[399986263,1766979044420,-500.0,0.00030136,2]
[399986264,1766979044430,-500.0,0.00030136,2]
[399986265,1766979044440,-500.0,0.00030136,2]
[399986266,1766979044450,-500.0,0.00030136,2]
[399986267,1766979044459,-500.0,0.00030136,2]
[399986268,1766979044468,-501.58419834,0.00030136,2]
[399986269,1766979044478,-500.0,0.00030136,2]
[399986270,1766979044487,-312.32247818,0.00030136,2]
[399986271,1766979044498,-362.53464253,0.00030136,2]
[399986272,1766979044507,-560.82020755,0.00030136,2]
[399986273,1766979044517,-300.24093112,0.00030136,2]
[399986274,1766979044527,-500.0,0.00030136,2]
[399986275,1766979044537,-543.02714467,0.00030136,2]
[399986276,1766979044547,-500.0,0.00030136,2]
[399986277,1766979044556,-481.94873328,0.00030136,2]
[399986278,1766979044566,-230.111158,0.00030137,120]
[399986279,1766979044575,-230.909644,0.00030137,120]
[399986280,1766979044587,-493.6,0.00030137,7]
[399986281,1766979044597,-468.6,0.00030137,6]
[399986282,1766979044606,-166.66,0.00030188,2]
[399986284,1766979044615,-199.81,0.000302,30]
[399986285,1766979044624,-2919.1,0.000302,7]
[399986286,1766979044634,-1103.8943123,0.00030261,2]
[399986287,1766979044643,-269.77183567,0.00030352,2]
[399986288,1766979044651,-978.0,0.000305,2]
[399986289,1766979044663,-305.0,0.000305,2]
[399986290,1766979044671,-201.0,0.000305,2]
[399986291,1766979044680,-903.0,0.000305,2]
[399986292,1766979044689,-151.92,0.0003057,30]
[399986293,1766979044698,-1128.54,0.000307,7]
[399986294,1766979044708,-432.0,0.00030721,2]
[399986295,1766979044717,-912.0,0.00030721,2]
[399986296,1766979044726,-1199.0,0.00030721,2]
[399986297,1766979044736,-1393.769,0.00030721,2]
[399986298,1766979044745,-1611.0,0.00030721,2]
[399986299,1766979044754,-1327.0,0.00030721,2]
[399986300,1766979044763,-166.66,0.00031095,2]
[399986301,1766979044773,-4968.3,0.00031182,2]
[399986302,1766979044782,-401.19111454,0.00031293,2]
[399986303,1766979044791,-567.0,0.00031296,2]
[399986304,1766979044800,-644.79446246,0.00031296,2]
[399986305,1766979044810,-275.06944831,0.00031533,2]
[399986306,1766979044819,-2000.0,0.000318,2]
[399986307,1766979044829,-151.55467166,0.00031814,2]
[399986308,1766979044839,-166.66,0.00032001,2]
[399986309,1766979044849,-183.28516782,0.00032005,2]
[399986310,1766979044858,-500.0,0.00032658,2]
[399986311,1766979044868,-150.0,0.00032658,2]
[399986312,1766979044877,-150.0,0.00032658,2]
[399986313,1766979044886,-184.99445728,0.00032658,2]
[399986314,1766979044896,-416.03518578,0.00032662,2]
[399986315,1766979044906,-500.0,0.00032685,2]
[399986316,1766979044915,-150.0,0.00032685,2]
[399986317,1766979044924,-150.0,0.00032685,2]
[399986318,1766979044934,-509.47077685,0.00032713,2]
[399986319,1766979044943,-297.50947476,0.00032713,2]
[399986320,1766979044952,-217.85988695,0.00032713,2]
[399986321,1766979044962,-151.0,0.00032877,2]
[399986322,1766979044971,-343.07,0.00032877,2]
[399986323,1766979044980,-150.0,0.00032877,2]
[399986324,1766979044989,-150.0,0.00032877,2]
[399986325,1766979044998,-150.0,0.00032877,2]
[399986326,1766979045008,-150.0,0.00032877,2]
[399986327,1766979045017,-155.21322731,0.00032877,2]
[399986328,1766979045026,-179.25,0.000329,14]
[399986329,1766979045035,-4687.27,0.000329,2]
[399986330,1766979045044,-150.0,0.00033,14]
[399986331,1766979045053,-1103.8943123,0.0003313,2]
[399986332,1766979045062,-745.25,0.00033165,2]
[399986333,1766979045071,-500.0,0.00033534,2]
[399986334,1766979045080,-337.78,0.00033534,2]
[399986335,1766979045089,-4968.3,0.00033535,3]
[399986336,1766979045098,-182.05,0.000336,14]
[399986337,1766979045108,-432.0,0.00033721,2]
[399986338,1766979045117,-912.0,0.00033721,2]
[399986339,1766979045126,-1199.0,0.00033721,2]
[399986340,1766979045135,-1611.0,0.00033721,2]
[399986341,1766979045145,-1327.0,0.00033721,2]
[399986342,1766979045155,-329.04805678,0.00034031,2]
[399986343,1766979045164,-567.0,0.00034035,2]
[399986344,1766979045174,-676.45227174,0.00034035,2]
[399986345,1766979045183,-174.85572163,0.00034199,2]
[399986346,1766979045193,-151.0,0.00034246,2]
[399986347,1766979045202,-1128.54,0.000344,14]
[399986348,1766979045212,-4687.27,0.000344,2]
[399986349,1766979045221,-151.92,0.00034895,30]
[399986350,1766979045230,-2000.0,0.000355,2]
[399986351,1766979045240,-183.28516782,0.00035557,2]
[399986352,1766979045249,-387.11,0.00035605,2]
[399986353,1766979045259,-500.0,0.00035605,2]
[399986354,1766979045268,-1298.76,0.00035605,2]
[399986355,1766979045277,-500.0,0.00035605,2]
[399986356,1766979045287,-500.0,0.00035605,2]
[399986357,1766979045297,-66299.74300864,0.00035606,2]
[399986358,1766979045307,-151.0,0.00035615,2]
[399986359,1766979045317,-999.0,0.00035616,120]
[399986360,1766979045326,-4968.3,0.00035889,4]
[399986361,1766979045336,-1103.8943123,0.00036,2]
[399986362,1766979045346,-999.0,0.00036712,120]
[399986363,1766979045356,-432.0,0.00036721,2]
[399986364,1766979045365,-1199.0,0.00036721,2]
[399986367,1766979045538,-1611.0,0.00036721,2]
[399986368,1766979045548,-1327.0,0.00036721,2]
[399986369,1766979045557,-567.0,0.00036774,2]
[399986370,1766979045567,-151.0,0.00036984,2]
[399986371,1766979045576,-4687.27,0.00037,2]
[399986372,1766979045589,-1433.72,0.00037159,47]
[399986373,1766979045600,-999.0,0.00037808,120]
[399986374,1766979045609,-666.0,0.00038183,20]
[399986375,1766979045619,-4968.3,0.00038243,5]
[399986376,1766979045628,-222.98587362,0.00038353,2]
[399986377,1766979045637,-740.4,0.00038356,48]
[399986378,1766979045647,-702.9,0.00038356,35]
[399986379,1766979045656,-174.85572163,0.00038431,2]
[399986380,1766979045666,-300.0,0.00038455,2]
[399986381,1766979045675,-300.0,0.00038455,2]
[399986382,1766979045685,-300.0,0.00038455,2]
[399986383,1766979045694,-303.81597643,0.00038491,2]
[399986384,1766979045703,-304.3664977,0.00038491,2]
[399986385,1766979045712,-300.0,0.00038491,2]
[399986386,1766979045722,-300.0,0.00038491,2]
[399986387,1766979045732,-368.11189296,0.00038491,2]
[399986388,1766979045742,-300.0,0.00038491,2]
[399986389,1766979045752,-300.0,0.00038491,2]
[399986390,1766979045762,-303.58705004,0.00038491,2]
[399986391,1766979045771,-300.0,0.00038491,2]
[399986392,1766979045781,-395.22582581,0.00038491,2]
[399986393,1766979045791,-300.0,0.00038491,2]
[399986394,1766979045801,-300.0,0.00038491,2]
[399986395,1766979045813,-300.0,0.00038491,2]
[399986396,1766979045822,-595.39568782,0.00038491,2]
[399986397,1766979045833,-364.18164659,0.00038491,2]
[399986398,1766979045843,-300.0,0.00038491,2]
[399986399,1766979045853,-300.0,0.00038491,2]
[399986400,1766979045862,-300.0,0.00038491,2]
[399986401,1766979045873,-300.0,0.00038491,2]
[399986403,1766979045882,-300.0,0.00038491,2]
[399986404,1766979045892,-300.0,0.00038491,2]
[399986405,1766979045902,-303.20169357,0.00038491,2]
[399986406,1766979045912,-300.0,0.00038491,2]
[399986407,1766979045922,-577.5673783,0.00038491,2]
[399986408,1766979045931,-300.0,0.00038491,2]
[399986409,1766979045941,-1321.648778,0.00038491,2]
[399986410,1766979045951,-323.27977376,0.00038491,2]
[399986411,1766979045960,-300.0,0.00038491,2]
[399986412,1766979045970,-304.3664977,0.00038491,2]
[399986413,1766979045979,-368.11189296,0.00038491,2]
[399986414,1766979045989,-300.0,0.00038491,2]
[399986415,1766979045998,-300.0,0.00038491,2]
[399986416,1766979046008,-300.0,0.00038491,2]
[399986417,1766979046019,-303.58705004,0.00038491,2]
[399986418,1766979046029,-300.0,0.00038491,2]
[399986419,1766979046038,-300.0,0.00038491,2]
[399986420,1766979046047,-300.0,0.00038491,2]
[399986421,1766979046058,-300.0,0.00038491,2]
[399986422,1766979046067,-595.39568782,0.00038491,2]
[399986423,1766979046077,-364.18164659,0.00038491,2]
[399986424,1766979046087,-300.0,0.00038491,2]
[399986425,1766979046096,-300.0,0.00038491,2]
[399986426,1766979046105,-300.0,0.00038491,2]
[399986427,1766979046115,-300.0,0.00038491,2]
[399986428,1766979046125,-306.28204119,0.00038491,2]
[399986429,1766979046136,-300.0,0.00038491,2]
[399986430,1766979046146,-303.20169357,0.00038491,2]
[399986431,1766979046155,-300.0,0.00038491,2]
[399986432,1766979046166,-577.5673783,0.00038491,2]
[399986433,1766979046177,-300.0,0.00038491,2]
[399986434,1766979046188,-1321.648778,0.00038491,2]
[399986435,1766979046201,-511.00994093,0.00038499,2]
[399986436,1766979046213,-500.0,0.00038499,2]
[399986437,1766979046223,-337.78,0.00038499,2]
[399986438,1766979046234,-72564.5993534,0.000385,30]
[399986439,1766979046246,-666.0,0.00038577,20]
[399986440,1766979046257,-1103.8943123,0.0003887,2]
[399986441,1766979046267,-999.0,0.00038904,120]
[399986442,1766979046279,-8521.3,0.00038904,2]
[399986443,1766979046292,-666.0,0.0003897,20]
[399986444,1766979046303,-4687.27,0.00039,30]
[399986445,1766979046314,-183.28516782,0.0003911,2]
[399986446,1766979046325,-2000.0,0.000392,2]
[399986447,1766979046335,-151.92,0.00039221,120]
[399986448,1766979046345,-666.0,0.00039364,20]
[399986449,1766979046355,-567.0,0.00039513,2]
[399986450,1766979046365,-2919.1,0.000396,14]
[399986451,1766979046377,-745.25,0.00039654,2]
[399986452,1766979046387,-432.0,0.00039721,2]
[399986453,1766979046399,-1199.0,0.00039721,2]
[399986454,1766979046409,-1611.0,0.00039721,2]
[399986455,1766979046419,-1327.0,0.00039721,2]
[399986456,1766979046430,-666.0,0.00039758,20]
[399986457,1766979046440,-999.0,0.0004,120]
[399986458,1766979046451,-666.0,0.00040151,20]
[399986459,1766979046462,-152.74,0.00040493,2]
[399986460,1766979046471,-221.25925946,0.000405,120]
[399986461,1766979046481,-666.0,0.00040545,20]
[399986462,1766979046492,-4968.3,0.00040596,7]
[399986463,1766979046502,-50000.0,0.00041,41]
[399986464,1766979046516,-45000.0,0.00041,51]
[399986465,1766979046526,-157.0,0.00041,120]
[399986466,1766979046536,-1500.0,0.00041,120]
[399986467,1766979046545,-1351.0,0.00041041,7]
[399986468,1766979046556,-999.0,0.00041095,120]
[399986469,1766979046566,-227.44,0.00041096,120]
[399986470,1766979046575,-355.22698885,0.00041096,2]
[399986471,1766979046586,-701.45,0.00041109,30]
[399986472,1766979046595,-700.0,0.00041314,60]
[399986474,1766979046604,-800.0,0.00041314,60]
[399986475,1766979046614,-500.0,0.00041314,60]
[399986476,1766979046623,-3870.16550433,0.00041661,7]
[399986477,1766979046632,-1351.0,0.00041688,7]
[399986478,1766979046642,-300.291044,0.00041733,107]
[399986479,1766979046652,-700.0,0.00041862,60]
[399986480,1766979046662,-800.0,0.00041862,60]
[399986481,1766979046672,-500.0,0.0004195,60]
[399986482,1766979046683,-500.0,0.0004195,60]
[399986483,1766979046694,-50000.0,0.00042,42]
[399986484,1766979046704,-50000.0,0.00042,52]
[399986485,1766979046715,-50000.0,0.00042,32]
[399986486,1766979046725,-1500.0,0.00042,120]
[399986487,1766979046735,-214.85,0.00042,120]
[399986488,1766979046747,-2919.1,0.00042,14]
[399986489,1766979046758,-250.0,0.00042,2]
[399986490,1766979046768,-300.0,0.00042092,2]
[399986491,1766979046779,-999.0,0.00042191,120]
[399986492,1766979046789,-2000.0,0.000422,30]
[399986493,1766979046799,-2000.0,0.000422,30]
[399986494,1766979046809,-2000.0,0.000422,30]
[399986495,1766979046820,-1955.05,0.000422,30]
[399986496,1766979046830,-567.0,0.00042252,2]
[399986497,1766979046840,-303.86841074,0.00042305,2]
[399986498,1766979046852,-300.0,0.00042311,2]
[399986499,1766979046863,-300.0,0.00042316,2]
[399986500,1766979046873,-1351.0,0.00042334,7]
[399986501,1766979046884,-300.0,0.00042384,2]
[399986502,1766979046894,-300.0,0.00042397,2]
[399986503,1766979046906,-800.0,0.0004241,60]
[399986504,1766979046917,-700.0,0.0004241,60]
[399986505,1766979046928,-500.0,0.0004241,60]
[399986506,1766979046938,-875.56,0.000425,120]
[399986507,1766979046948,-56517.68,0.000425,120]
[399986508,1766979046959,-300.0,0.00042525,2]
[399986509,1766979046972,-387.11,0.0004255,2]
[399986510,1766979046982,-500.0,0.0004255,2]
[399986511,1766979046991,-1298.76,0.0004255,2]
[399986512,1766979047003,-500.0,0.0004255,2]
[399986513,1766979047013,-500.0,0.0004255,2]
[399986514,1766979047024,-5910.0,0.00042552,30]
[399986515,1766979047035,-300.0,0.00042554,2]
[399986516,1766979047045,-300.0,0.00042618,2]
[399986517,1766979047055,-161.95652614,0.00042656,120]
[399986518,1766979047070,-161.10532374,0.00042656,30]
[399986519,1766979047081,-884.88241008,0.0004266,120]
[399986520,1766979047092,-174.85572163,0.00042662,28]
[399986521,1766979047103,-269.77183567,0.00042662,2]
[399986522,1766979047113,-183.28516782,0.00042662,2]
[399986523,1766979047123,-300.0,0.00042689,2]
[399986524,1766979047133,-300.0,0.00042707,2]
[399986525,1766979047144,-767.7689495,0.00042708,120]
[399986526,1766979047154,-1023.01459206,0.00042708,120]
[399986527,1766979047166,-432.0,0.00042721,2]
[399986528,1766979047177,-1611.0,0.00042721,2]
[399986529,1766979047188,-1327.0,0.00042721,2]
[399986530,1766979047202,-387.11,0.00042746,2]
[399986531,1766979047212,-500.0,0.00042746,2]
[399986532,1766979047222,-1298.76,0.00042746,2]
[399986533,1766979047233,-500.0,0.00042746,2]
[399986534,1766979047245,-500.0,0.00042746,2]
[399986535,1766979047256,-500.0,0.00042746,2]
[399986536,1766979047267,-337.78,0.00042746,2]
[399986537,1766979047276,-66299.74300864,0.00042747,30]
[399986538,1766979047289,-66299.74300864,0.00042747,30]
[399986539,1766979047300,-66299.74300864,0.00042747,30]
[399986540,1766979047310,-66299.74300864,0.00042747,30]
[399986541,1766979047320,-500.0,0.00042754,2]
[399986542,1766979047331,-500.0,0.00042754,2]
[399986543,1766979047342,-337.78,0.00042754,2]
[399986544,1766979047351,-337.78,0.00042754,2]
[399986545,1766979047361,-500.0,0.00042755,2]
[399986546,1766979047371,-500.0,0.00042755,2]
[399986547,1766979047382,-500.0,0.00042755,2]
[399986548,1766979047392,-500.0,0.00042755,2]
[399986549,1766979047404,-500.0,0.00042755,2]
[399986550,1766979047415,-500.0,0.00042755,2]
[399986551,1766979047427,-624.81978948,0.00042755,2]
[399986552,1766979047439,-337.78,0.00042755,2]
[399986553,1766979047448,-337.78,0.00042755,2]
[399986554,1766979047462,-337.78,0.00042755,2]
[399986555,1766979047473,-337.78,0.00042755,2]
[399986556,1766979047485,-337.78,0.00042755,2]
[399986557,1766979047496,-337.78,0.00042755,2]
[399986558,1766979047506,-337.78,0.00042755,2]
[399986559,1766979047517,-337.78,0.00042755,2]
[399986560,1766979047528,-337.78,0.00042755,2]
[399986561,1766979047539,-337.78,0.00042755,2]
[399986562,1766979047550,-337.78,0.00042755,2]
[399986563,1766979047560,-337.78,0.00042755,2]
[399986564,1766979047571,-338.01141846,0.00042755,2]
[399986565,1766979047584,-151.0,0.00042756,120]
[399986566,1766979047595,-151.0,0.00042756,120]
[399986567,1766979047606,-151.0,0.00042756,120]
[399986568,1766979047618,-151.0,0.00042756,120]
[399986569,1766979047630,-151.0,0.00042756,120]
[399986570,1766979047641,-151.0,0.00042756,120]
[399986571,1766979047655,-151.0,0.00042756,120]
[399986572,1766979047666,-151.0,0.00042756,120]
[399986573,1766979047676,-151.0,0.00042756,120]
[399986574,1766979047688,-151.0,0.00042756,120]
[399986575,1766979047700,-151.0,0.00042756,120]
[399986576,1766979047711,-228.398724,0.00042756,120]
[399986577,1766979047721,-387.11,0.00042759,2]
[399986578,1766979047731,-500.0,0.00042759,2]
[399986579,1766979047743,-1298.76,0.00042759,2]
[399986580,1766979047754,-500.0,0.00042759,2]
[399986581,1766979047764,-500.0,0.00042759,2]
[399986582,1766979047775,-151.0,0.00042759,120]
[399986583,1766979047786,-151.0,0.0004276,120]
[399986584,1766979047797,-151.0,0.0004276,120]
[399986585,1766979047807,-151.0,0.0004276,120]
[399986586,1766979047817,-153.849953,0.0004276,120]
[399986587,1766979047827,-151.0,0.0004276,120]
[399986588,1766979047837,-151.0,0.0004276,120]
[399986589,1766979047848,-151.0,0.0004276,120]
[399986590,1766979047859,-151.0,0.0004276,120]
[399986591,1766979047870,-195.797776,0.0004276,120]
[399986592,1766979047879,-151.0,0.0004276,14]
[399986593,1766979047888,-151.0,0.0004276,14]
[399986594,1766979047897,-151.0,0.0004276,14]
[399986595,1766979047906,-151.0,0.0004276,14]
[399986596,1766979047915,-151.0,0.0004276,14]
[399986597,1766979047924,-151.0,0.0004276,14]
[399986598,1766979047933,-151.0,0.0004276,14]
[399986599,1766979047942,-151.0,0.0004276,14]
[399986600,1766979047951,-151.0,0.0004276,14]
[399986601,1766979047961,-151.0,0.0004276,14]
[399986602,1766979047970,-151.0,0.0004276,14]
[399986603,1766979047979,-151.0,0.0004276,14]
[399986604,1766979047988,-151.0,0.0004276,14]
[399986605,1766979047998,-151.0,0.0004276,14]
[399986606,1766979048007,-151.0,0.0004276,14]
[399986607,1766979048016,-151.0,0.0004276,14]
[399986608,1766979048025,-244.586707,0.0004276,14]
[399986609,1766979048069,-387.11,0.0004276,2]
[399986610,1766979048078,-387.11,0.0004276,2]
[399986611,1766979048087,-387.11,0.0004276,2]
[399986612,1766979048095,-387.11,0.0004276,2]
[399986613,1766979048104,-387.11,0.0004276,2]
[399986614,1766979048113,-387.11,0.0004276,2]
[399986615,1766979048121,-387.11,0.0004276,2]
[399986616,1766979048131,-387.11,0.0004276,2]
[399986617,1766979048140,-387.11,0.0004276,2]
[399986618,1766979048149,-387.11,0.0004276,2]
[399986619,1766979048157,-387.11,0.0004276,2]
[399986620,1766979048166,-387.11,0.0004276,2]
[399986621,1766979048175,-387.11,0.0004276,2]
[399986622,1766979048184,-387.32,0.0004276,2]
[399986623,1766979048193,-151.0,0.0004276,120]
[399986624,1766979048202,-151.0,0.0004276,120]
[399986625,1766979048211,-151.0,0.0004276,120]
[399986626,1766979048220,-151.0,0.0004276,120]
[399986627,1766979048229,-219.767861,0.0004276,120]
[399986628,1766979048237,-151.0,0.0004276,120]
[399986629,1766979048247,-277.688532,0.0004276,120]
[399986630,1766979048257,-151.0,0.0004276,30]
[399986631,1766979048266,-151.0,0.0004276,30]
[399986632,1766979048275,-151.0,0.0004276,30]
[399986633,1766979048285,-151.0,0.0004276,30]
[399986634,1766979048294,-151.0,0.0004276,30]
[399986635,1766979048303,-151.0,0.0004276,30]
[399986636,1766979048312,-151.0,0.0004276,30]
[399986637,1766979048321,-151.0,0.0004276,30]
[399986638,1766979048331,-151.0,0.0004276,30]
[399986639,1766979048340,-151.0,0.0004276,30]
[399986640,1766979048349,-151.0,0.0004276,30]
[399986641,1766979048359,-151.0,0.0004276,30]
[399986642,1766979048368,-285.539238,0.0004276,30]
[399986643,1766979048378,-500.0,0.0004276,2]
[399986644,1766979048390,-500.0,0.0004276,2]
[399986645,1766979048399,-356.3607294,0.0004276,2]
[399986646,1766979048409,-1298.76,0.0004276,2]
[399986647,1766979048420,-1298.76,0.0004276,2]
[399986648,1766979048430,-1298.76,0.0004276,2]
[399986649,1766979048439,-1298.76,0.0004276,2]
[399986650,1766979048449,-1298.76,0.0004276,2]
[399986651,1766979048458,-1298.76,0.0004276,2]
[399986652,1766979048467,-1298.76,0.0004276,2]
[399986653,1766979048476,-1298.76,0.0004276,2]
[399986654,1766979048485,-1298.76,0.0004276,2]
[399986655,1766979048494,-1298.76,0.0004276,2]
[399986656,1766979048503,-1298.76,0.0004276,2]
[399986657,1766979048512,-1298.76,0.0004276,2]
[399986658,1766979048521,-1298.76,0.0004276,2]
[399986659,1766979048529,-1298.99381655,0.0004276,2]
[399986660,1766979048538,-500.0,0.0004276,2]
[399986661,1766979048547,-500.0,0.0004276,2]
[399986662,1766979048556,-500.0,0.0004276,2]
[399986663,1766979048565,-500.0,0.0004276,2]
[399986664,1766979048573,-500.0,0.0004276,2]
[399986665,1766979048585,-500.0,0.0004276,2]
[399986666,1766979048594,-500.0,0.0004276,2]
[399986667,1766979048603,-500.0,0.0004276,2]
[399986668,1766979048612,-500.0,0.0004276,2]
[399986669,1766979048621,-500.0,0.0004276,2]
[399986670,1766979048630,-500.0,0.0004276,2]
[399986671,1766979048639,-500.0,0.0004276,2]
[399986672,1766979048648,-620.10818551,0.0004276,2]
[399986673,1766979048657,-500.0,0.0004276,2]
[399986674,1766979048666,-500.0,0.0004276,2]
[399986675,1766979048675,-500.0,0.0004276,2]
[399986676,1766979048684,-368.88095472,0.0004276,2]
[399986677,1766979048692,-2739.7656381,0.0004276,2]
[399986678,1766979048702,-901.5956375,0.0004276,4]
[399986679,1766979048711,-21882.09551677,0.0004276,4]
[399986680,1766979048719,-50000.0,0.00042761,30]
[399986681,1766979048728,-50000.0,0.00042761,31]
[399986682,1766979048737,-50000.0,0.00042761,32]
[399986683,1766979048747,-50000.0,0.00042761,33]
[399986684,1766979048757,-50000.0,0.00042761,34]
[399986685,1766979048766,-50000.0,0.00042761,35]
[399986686,1766979048775,-50000.0,0.00042761,36]
[399986687,1766979048784,-50000.0,0.00042761,37]
[399986688,1766979048793,-50000.0,0.00042761,38]
[399986689,1766979048801,-50000.0,0.00042761,39]
[399986690,1766979048810,-328.971057,0.00042762,120]
[399986691,1766979048819,-328.971057,0.00042762,120]
[399986692,1766979048828,-328.971057,0.00042762,120]
[399986693,1766979048837,-328.971057,0.00042762,120]
[399986694,1766979048847,-328.971057,0.00042762,120]
[399986695,1766979048856,-328.971057,0.00042762,120]
[399986696,1766979048865,-328.971057,0.00042762,120]